bitfinex/quotes_ETHUSD_20250404
["timestamp","ask_amount","ask_price","bid_price","bid_amount"]
[1743770128567,5.59236,1788.2,1787.7,5.59373]
[1743770128770,10.294,1788.3,1787.5,0.05593832]
[1743770129003,8.59098,1788.6,1788.0,5.59282]
[1743770129301,5.59175,1788.4,1787.9,5.59314]
[1743770129507,5.59099,1788.6,1788.1,5.59241]
[1743770129801,5.5913,1788.5,1787.7,5.59377]
[1743770130003,5.59084,1788.7,1788.2,5.59207]
[1743770130369,1.5082,1788.8,1788.1,1.6374]
[1743770130370,4.5082,1788.8,1788.1,1.6374]
[1743770130568,5.5911,1788.6,1788.1,7.2297]
[1743770130871,7.09855,1788.8,1788.1,1.6374]
[1743770131172,5.5913,1788.5,1788.0,5.59281]
[1743770131367,5.59268,1788.1,1787.7,1.5122]
[1743770131690,3.9482678,1788.5,1787.5,5.59436]
[1743770131691,0.33262503,1788.0,1787.5,5.59436]
[1743770131891,0.33262503,1788.0,1787.4,7.10691]
[1743770131892,5.59404,1787.7,1787.2,5.59516]
[1743770132065,5.5949,1787.4,1787.1,1.5622]
[1743770132267,0.32137966,1787.3,1787.1,0.05]
[1743770132484,11.8035,1787.6,1787.1,0.05]
[1743770132685,5.59471,1787.4,1787.1,0.05]
[1743770132882,0.3235239,1787.3,1787.1,5.64549]
[1743770133079,17.39762,1787.6,1787.2,5.59534]
[1743770133080,10.179,1787.6,1787.2,5.59534]
[1743770133372,0.32326476,1787.5,1787.3,5.59481]
[1743770133602,0.32326476,1787.5,1787.4,5.59471]
[1743770133903,0.32496954,1787.5,1787.4,5.59471]
[1743770134108,10.155,1788.0,1787.5,5.5944]
[1743770134307,0.32745826,1787.9,1787.3,5.59501]
[1743770134511,5.59419,1787.6,1787.2,5.59528]
[1743770134734,5.91805561,1787.5,1787.1,5.64537]
[1743770134895,0.32360561,1787.5,1787.1,5.64537]
[1743770135278,0.32360561,1787.5,1787.2,5.59522]
[1743770135510,5.59379,1787.7,1787.2,5.59522]
[1743770135685,5.91792413,1787.6,1787.1,5.64565]
[1743770135868,5.91791413,1787.6,1787.1,0.05]
[1743770136075,0.32381413,1787.6,1787.1,0.05]
[1743770136271,5.59527,1787.3,1787.1,0.05]
[1743770136501,5.59527,1787.3,1785.4,5.60088]
[1743770136502,1.6208,1787.0,1786.1,1.606]
[1743770136676,5.59829,1786.3,1786.1,0.05]
[1743770137006,0.31309765,1786.2,1786.1,0.05]
[1743770137515,5.91206291,1786.2,1786.1,0.05]
[1743770138211,0.31359291,1786.2,1786.1,0.05]
[1743770138813,5.91206291,1786.2,1786.1,0.05]
[1743770139125,9.50093235,1786.2,1786.1,0.05]
[1743770139325,13.44920015,1786.2,1786.1,0.05]
[1743770139698,8.90972606,1786.2,1786.1,0.05]
[1743770140127,12.85799386,1786.2,1786.1,0.05]
[1743770140326,14.48919386,1786.2,1786.1,0.05]
[1743770140625,5.60149,1785.3,1785.1,0.56087587]
[1743770141027,0.30244653,1785.2,1785.1,0.56087587]
[1743770141228,0.30244653,1785.2,1785.1,0.05]
[1743770141399,11.5742,1785.6,1785.1,0.05]
[1743770141741,5.60161,1785.2,1785.1,0.05]
[1743770142264,5.90450339,1785.2,1785.1,0.05]
[1743770142450,8.90450339,1785.2,1785.1,0.05]
[1743770142793,10.41500339,1785.2,1785.1,0.05]
[1743770143228,5.60333,1784.7,1784.1,5.65506]
[1743770143407,8.4933678,1784.6,1784.1,0.05]
[1743770143604,5.60475,1784.2,1784.1,0.05]
[1743770143909,5.89290331,1784.2,1784.1,0.05]
[1743770144139,0.28815331,1784.2,1784.1,0.05]
[1743770144643,1.5451,1784.6,1784.1,0.05]
[1743770144841,0.28792781,1784.2,1784.1,0.05]
[1743770145046,7.14865,1784.6,1784.1,0.05]
[1743770145246,0.28902714,1784.2,1784.1,0.05]
[1743770145403,3.9482678,1784.9,1784.2,7.14501]
[1743770145597,3.0,1784.8,1784.2,7.14501]
[1743770145803,5.60306,1784.8,1784.2,1.5404]
[1743770146023,5.60338,1784.7,1784.1,0.05]
[1743770146224,5.60289,1784.8,1784.1,11.25986]
[1743770146427,5.60338,1784.7,1784.1,0.05]
[1743770146678,5.60475,1784.2,1784.1,0.05]
[1743770146827,5.60554,1784.0,1782.9,2.50091103]
[1743770147027,9.5541078,1783.9,1783.2,5.60787]
[1743770147228,9.5541078,1783.9,1783.3,5.60757]
[1743770147469,19.95485,1784.2,1783.3,0.05607299]
[1743770147470,3.0,1784.1,1783.3,0.05607299]
[1743770147773,5.60526,1784.1,1783.5,5.60665]
[1743770148073,5.60386,1784.5,1783.9,5.60547]
[1743770148074,3.0,1784.5,1783.9,5.60547]
[1743770148442,8.60387,1784.5,1783.9,5.60547]
[1743770148778,5.60515,1784.1,1783.4,5.60695]
[1743770148975,5.60445,1784.3,1783.4,0.05606892]
[1743770149189,8.60491,1784.2,1783.6,5.60652]
[1743770149478,3.9482678,1784.4,1783.9,5.60549]
[1743770149656,16.91264,1784.6,1784.0,5.60522]
[1743770149657,11.309,1784.6,1784.0,5.60522]
[1743770149845,22.51651,1784.6,1783.9,5.60566]
[1743770150164,22.51651,1784.6,1783.9,5.60554]
[1743770150165,11.309,1784.6,1783.9,5.60554]
[1743770150331,16.91263,1784.6,1784.0,5.60524]
[1743770150527,5.60381,1784.5,1783.9,5.60554]
[1743770150723,11.309,1784.6,1784.0,5.60537]
[1743770150963,13.50710998,1784.6,1783.8,0.05605291]
[1743770151268,13.50710998,1784.6,1783.9,5.60569]
[1743770151428,1.573,1784.6,1784.3,5.6043]
[1743770151623,1.573,1784.6,1784.0,1.5972]
[1743770151830,5.60444,1784.3,1783.7,5.6063]
[1743770152083,5.60443,1784.3,1783.6,1.5972]
[1743770152264,3.0,1784.3,1783.4,5.60726]
[1743770152447,3.0,1783.8,1783.3,1.6316]
[1743770152644,3.0,1783.9,1783.4,11.21418]
[1743770152829,3.0,1783.9,1782.9,5.60867]
[1743770152830,3.9482678,1783.6,1782.9,5.60867]
[1743770153029,0.55,1784.1,1782.9,5.60867]
[1743770153030,1.8014,1784.2,1783.3,7.20085]
[1743770153230,5.60427,1784.4,1783.4,6.21305511]
[1743770153535,3.0,1784.5,1784.0,5.60537]
[1743770153741,1.5014,1784.6,1784.2,5.6046]
[1743770154132,9.685,1784.7,1784.1,5.60503]
[1743770154530,5.60424,1784.4,1783.5,7.25493]
[1743770154775,5.60472,1784.3,1783.7,5.60612]
[1743770155140,5.60468,1784.3,1783.6,5.60644]
[1743770155345,11.21062,1784.1,1783.5,1.648]
[1743770155540,5.60475,1784.2,1783.6,5.60652]
[1743770155845,5.6057,1783.9,1783.3,5.60739]
[1743770156041,5.84981279,1783.8,1783.2,5.60786]
[1743770156265,0.24353279,1783.8,1783.1,1.6213]
[1743770156471,5.84965279,1783.8,1783.3,5.60751]
[1743770156631,5.84965279,1783.8,1783.1,1.6213]
[1743770156632,0.24353279,1783.8,1783.1,7.22934]
[1743770156963,5.60572,1783.9,1783.3,5.60744]
[1743770157164,0.2417349,1783.7,1783.3,5.60744]
[1743770157366,0.24287228,1783.8,1783.5,5.60679]
[1743770157668,5.60601,1783.8,1783.2,5.60789]
[1743770157866,5.60601,1783.8,1783.2,11.21554]
[1743770158072,0.24193055,1783.7,1783.2,5.60777]
[1743770158366,0.24193055,1783.7,1783.3,5.60738]
[1743770158542,0.24193055,1783.7,1783.4,5.60714]
[1743770158866,5.60541,1784.0,1783.5,5.60694]
[1743770159071,0.24118338,1783.6,1783.5,5.60695]
[1743770159254,3.0,1784.0,1783.6,5.6066]
[1743770159455,8.6054,1784.0,1783.4,6.15718]
[1743770159673,5.60569,1783.9,1783.3,5.60741]
[1743770159839,15.2531,1784.1,1783.5,5.60677]
[1743770160484,15.2531,1784.1,1783.6,5.60659]
[1743770160672,9.648,1784.1,1783.8,5.60597]
[1743770160857,7.22425,1784.3,1783.8,5.60597]
[1743770161060,9.514,1784.5,1784.1,5.60504]
[1743770161261,9.514,1784.5,1784.0,5.60537]
[1743770161446,5.60431,1784.4,1783.8,11.21184]
[1743770161648,5.60431,1784.4,1783.8,5.60586]
[1743770161847,5.60431,1784.4,1783.8,11.21166]
[1743770162055,5.60496,1784.2,1783.6,7.25634]
[1743770162255,5.60519,1784.1,1783.5,5.60678]
[1743770162568,6.165749,1784.1,1783.5,5.60679]
[1743770162772,1.5964,1783.9,1783.4,5.60724]
[1743770162972,7.20235,1783.9,1783.3,5.60756]
[1743770163174,11.0704,1783.9,1783.0,1.5135]
[1743770163475,5.60833,1783.1,1782.6,7.22753]
[1743770163660,1.6598,1783.3,1782.7,5.60944]
[1743770163661,3.0,1783.2,1782.7,5.60944]
[1743770163978,3.0,1783.0,1782.2,0.87429606]
[1743770164180,5.60934,1782.8,1782.2,5.61076]
[1743770164341,12.035229,1783.2,1782.6,11.2192]
[1743770164542,5.60852,1783.0,1782.2,5.61073]
[1743770164739,5.60913,1782.9,1782.2,11.22156]
[1743770164969,8.60843,1783.1,1782.0,5.61167]
[1743770165172,3.0,1783.1,1782.5,5.60997]
[1743770165351,5.60868,1783.0,1782.2,0.55]
[1743770165547,5.60896,1782.9,1782.3,5.61048]
[1743770165752,5.60939,1782.8,1782.2,11.22195]
[1743770166168,5.60939,1782.8,1782.2,5.61092]
[1743770166480,5.60939,1782.8,1781.9,7.22973]
[1743770166481,5.61032,1782.5,1782.1,0.51252282]
[1743770166664,10.9956,1782.6,1782.1,0.51252282]
[1743770167044,16.6054,1782.6,1782.1,0.51252282]
[1743770167376,14.2204,1782.5,1782.1,0.51252282]
[1743770167578,14.2204,1782.5,1781.9,5.61197]
[1743770167782,3.0,1782.5,1782.1,5.61128]
[1743770167977,10.9956,1782.6,1782.2,5.61099]
[1743770168176,5.60919,1782.8,1781.8,6.162]
[1743770168177,5.60916,1782.8,1781.8,6.162]
[1743770168478,16.54204,1783.0,1782.1,6.16118]
[1743770168677,12.587604,1783.0,1782.5,5.60988]
[1743770168880,16.54197,1783.0,1782.4,6.16041]
[1743770169083,5.60903,1782.9,1782.2,11.22166]
[1743770169383,5.60981,1782.6,1782.1,5.61127]
[1743770169578,3.9482678,1782.7,1781.9,0.51252282]
[1743770169788,5.61062,1782.4,1781.9,0.51252282]
[1743770169979,5.61084,1782.3,1781.9,0.51252282]
[1743770170180,9.387,1782.4,1781.9,0.51252282]
[1743770170379,9.387,1782.4,1781.9,6.12432282]
[1743770170685,5.61086,1782.3,1781.9,0.51252282]
[1743770170980,5.61086,1782.3,1781.7,0.51252282]
[1743770170981,5.61153,1782.1,1781.7,0.51252282]
[1743770171287,6.172406,1782.2,1781.7,6.12500282]
[1743770171288,1.6625,1782.0,1781.7,6.12500282]
[1743770171448,0.18225797,1782.3,1781.7,0.51252282]
[1743770171650,0.18219836,1781.9,1781.8,7.1213]
[1743770171987,0.18494059,1781.9,1781.8,8.18382282]
[1743770172160,3.0,1782.5,1782.1,5.61123]
[1743770172362,0.18902415,1782.4,1782.2,5.61088]
[1743770172570,16.58979,1782.7,1781.9,0.55]
[1743770172772,10.9803,1782.7,1782.1,5.61129]
[1743770173083,0.18901332,1782.6,1782.5,0.55]
[1743770173285,0.18901332,1782.6,1781.8,0.51252282]
[1743770173484,0.18901332,1782.6,1781.8,5.61222]
[1743770173485,4.6144,1782.5,1781.8,5.61222]
[1743770173664,5.61084,1782.3,1781.6,5.61264]
[1743770173988,0.16837431,1782.2,1781.4,5.61355]
[1743770174187,0.16837431,1782.2,1781.7,5.61233]
[1743770174356,0.16837431,1782.2,1781.9,5.61191]
[1743770174553,5.61096,1782.3,1781.8,0.51525612]
[1743770174869,0.16905974,1782.2,1781.8,0.51525612]
[1743770175400,6.09712571,1782.2,1781.8,0.51525612]
[1743770175562,6.09712571,1782.2,1781.3,4.6191]
[1743770175563,5.61152,1782.1,1781.4,0.51525612]
[1743770175762,0.16746487,1782.0,1781.5,5.61308]
[1743770176008,3.16746487,1782.0,1781.5,5.61308]
[1743770176210,3.16746487,1782.0,1781.4,6.12878612]
[1743770176211,4.5238,1781.9,1781.4,0.51525612]
[1743770176377,4.5238,1781.5,1781.4,0.51525612]
[1743770176574,3.0,1781.2,1781.1,0.05]
[1743770176795,1.68781516,1781.5,1781.1,0.05]
[1743770176963,0.16333588,1781.2,1781.1,0.05]
[1743770177165,17.95019,1781.2,1781.1,0.05]
[1743770177363,20.46955659,1781.2,1781.1,0.05]
[1743770177601,22.11605659,1781.2,1781.1,0.05]
[1743770177765,3.0,1781.0,1780.2,6.13229612]
[1743770177961,1.6465,1781.1,1780.3,5.61687]
[1743770177962,3.0,1780.8,1780.3,5.61687]
[1743770178212,5.77829605,1780.9,1780.2,0.51525612]
[1743770178213,3.0,1780.4,1780.2,0.51525612]
[1743770178505,8.61734,1780.2,1780.1,6.12e-06]
[1743770178815,14.28019358,1780.2,1780.1,6.12e-06]
[1743770178964,11.97766,1780.1,1780.0,0.047712]
[1743770179166,10.88352723,1780.1,1780.0,2e-06]
[1743770179388,10.33352723,1780.1,1780.0,2e-06]
[1743770179589,12.32344073,1780.1,1780.0,2e-06]
[1743770179794,21.64944073,1780.1,1780.0,2e-06]
[1743770179998,0.15616723,1780.1,1780.0,2e-06]
[1743770180418,3.0,1780.3,1780.0,2e-06]
[1743770180565,0.16117046,1780.1,1780.0,5.617972]
[1743770180764,9.31,1780.5,1780.0,2e-06]
[1743770181018,0.16096757,1780.4,1780.0,5.617832]
[1743770181197,0.16096757,1780.4,1780.2,5.61712]
[1743770181510,0.16096757,1780.4,1780.3,5.61703]
[1743770181708,5.615,1781.0,1780.5,5.61623]
[1743770181709,1.4939,1781.0,1780.5,5.61623]
[1743770181869,9.327,1780.9,1780.4,5.61669]
[1743770182065,9.327,1780.9,1780.5,5.61637]
[1743770182271,9.327,1780.9,1780.4,5.61671]
[1743770182572,9.327,1780.9,1780.0,2e-06]
[1743770182573,5.61619,1780.6,1780.0,2e-06]
[1743770182770,1.4889,1780.4,1780.0,2e-06]
[1743770183094,5.61746,1780.2,1780.0,2e-06]
[1743770183298,5.61766,1780.1,1780.0,2e-06]
[1743770183485,10.04996,1780.1,1780.0,2e-06]
[1743770183708,23.85432878,1780.1,1780.0,2e-06]
[1743770184712,24.40432878,1780.1,1779.8,1.1]
[1743770184906,12.5665578,1779.9,1779.8,1.1]
[1743770185100,8.61829,1779.9,1779.8,1.1]
[1743770185312,10.05579,1779.9,1779.8,1.1]
[1743770185517,11.52654497,1779.9,1779.8,1.1]
[1743770185712,11.6682663,1779.9,1779.8,1.1]
[1743770186230,4.57922133,1779.9,1779.8,1.1]
[1743770186394,16.44751133,1779.9,1779.8,1.1]
[1743770186595,19.44751133,1779.9,1779.8,0.55]
[1743770187224,1.57922133,1779.9,1779.8,0.55]
[1743770187419,0.14172133,1779.9,1779.8,0.55]
[1743770187730,5.76001133,1779.9,1779.8,0.55]
[1743770187901,6.33599946,1779.9,1779.8,0.55]
[1743770188094,9.33599946,1779.9,1779.8,0.55]
[1743770188292,0.14172133,1779.9,1779.8,0.55]
[1743770188529,1.415,1780.6,1779.9,5.61824]
[1743770188700,7.03131,1780.6,1780.0,5.61795]
[1743770189034,4.415,1780.6,1780.1,5.61754]
[1743770189332,4.54091459,1780.6,1780.1,5.61751]
[1743770189507,4.54091459,1780.6,1780.2,5.61715]
[1743770189508,0.12591459,1780.6,1780.2,5.61715]
[1743770189692,5.61443,1781.2,1780.5,5.61639]
[1743770189891,5.61525,1780.9,1780.3,7.02783]
[1743770190137,0.10514907,1780.8,1780.0,11.78556]
[1743770190432,5.61593,1780.7,1780.1,11.23491]
[1743770190616,5.61612,1780.6,1780.0,5.61795]
[1743770190826,5.61656,1780.5,1780.0,5.61797]
[1743770191008,5.61656,1780.5,1779.9,7.13697]
[1743770191009,0.108045,1780.5,1780.1,5.61761]
[1743770191216,0.108045,1780.5,1780.2,5.61718]
[1743770191532,21.80605,1781.3,1780.7,5.6156]
[1743770191735,23.986585,1781.3,1780.6,6.16608]
[1743770191936,5.6145,1781.1,1780.6,5.61608]
[1743770192259,12.758605,1781.3,1780.8,5.61532]
[1743770192260,7.02888,1781.3,1780.8,5.61532]
[1743770192414,5.61444,1781.2,1780.6,5.61606]
[1743770192611,5.61479,1781.1,1780.5,1.5006]
[1743770192809,5.61479,1781.1,1780.5,7.11684]
[1743770193018,4.415,1781.3,1780.5,1.5006]
[1743770193311,1.415,1781.3,1780.5,7.11697]
[1743770193511,5.61462,1781.1,1780.5,7.1169]
[1743770193927,5.61447,1781.2,1780.5,1.5006]
[1743770194126,5.61456,1781.1,1780.6,5.61595]
[1743770194321,3.0,1781.2,1780.5,1.5006]
[1743770194519,3.0,1781.2,1780.8,5.61527]
[1743770194725,4.3539,1781.2,1780.6,5.61592]
[1743770194923,3.0,1781.2,1780.5,1.5006]
[1743770195253,9.124,1781.3,1780.9,5.61495]
[1743770195441,9.124,1781.3,1780.8,5.61534]
[1743770195605,9.124,1781.3,1780.6,0.55]
[1743770195938,11.22869,1781.2,1780.6,6.16608]
[1743770196138,11.22869,1781.2,1780.4,6.12990565]
[1743770196139,5.6145,1781.1,1780.4,6.12990565]
[1743770196341,5.61527,1780.9,1780.4,6.12990565]
[1743770196543,4.5505,1781.0,1780.5,5.61627]
[1743770196708,4.5505,1781.0,1780.5,5.61628]
[1743770196908,8.61419,1781.2,1780.6,5.61597]
[1743770197121,3.0,1781.2,1780.8,5.61526]
[1743770197322,3.0,1781.2,1780.9,5.61512]
[1743770197532,10.6756,1781.3,1780.9,5.61512]
[1743770197737,10.6756,1781.3,1781.0,5.61477]
[1743770197933,5.61389,1781.3,1780.9,1.4737]
[1743770198263,12.021,1781.5,1780.5,1.4737]
[1743770198474,4.4872,1781.4,1780.5,1.4737]
[1743770198610,4.4872,1781.4,1781.0,5.61462]
[1743770198811,25.26,1781.6,1780.7,0.55]
[1743770199046,3.0,1781.5,1780.7,5.61561]
[1743770199344,5.61462,1781.1,1780.5,7.08992]
[1743770199544,11.22935,1781.1,1780.6,5.61597]
[1743770199752,5.61449,1781.2,1780.6,0.51322565]
[1743770200047,5.61494,1781.0,1780.6,0.51322565]
[1743770200229,11.22997,1781.0,1780.6,0.51322565]
[1743770200429,3.0,1781.0,1780.6,0.51322565]
[1743770200637,4.4726,1781.1,1780.7,5.61567]
[1743770200841,0.11264621,1780.9,1780.3,0.51322565]
[1743770201151,10.07981,1780.4,1780.3,0.51322565]
[1743770201339,44.38681,1780.4,1780.3,0.51322565]
[1743770201660,44.49717983,1780.4,1780.3,0.51322565]
[1743770201950,5.61734,1780.2,1779.8,0.55]
[1743770202118,0.10887544,1780.1,1779.8,0.55]
[1743770202314,8.61706,1780.3,1779.8,0.55]
[1743770202617,0.10942922,1780.2,1779.8,0.55]
[1743770202956,5.6161,1780.6,1780.1,5.61766]
[1743770203319,0.11104057,1780.5,1780.1,5.61766]
[1743770203651,0.11104057,1780.5,1780.1,5.61759]
[1743770203821,0.11104057,1780.5,1780.2,5.61715]
[1743770204216,0.11104057,1780.5,1780.3,5.61677]
[1743770204422,0.11104057,1780.5,1780.2,11.7845]
[1743770204624,8.61574,1780.8,1780.3,5.61703]
[1743770204824,0.1092556,1780.4,1780.3,5.61703]
[1743770205025,3.0,1780.8,1780.4,5.61664]
[1743770205363,3.0,1780.8,1780.4,6.12989565]
[1743770205662,14.63486,1781.0,1780.5,5.61634]
[1743770205825,5.61526,1780.9,1780.4,6.12982565]
[1743770206247,14.63486,1781.0,1780.4,6.12993565]
[1743770206447,14.63486,1781.0,1780.5,6.12947565]
[1743770206757,26.7043,1781.2,1780.8,5.61525]
[1743770207057,32.31852,1781.2,1780.8,5.61525]
[1743770207256,3.0,1781.1,1780.6,0.55]
[1743770207454,8.61545,1780.8,1780.7,0.51322565]
[1743770207656,17.57345,1780.8,1780.7,0.51322565]
[1743770207859,11.958,1780.8,1780.7,0.51322565]
[1743770208059,8.958,1780.8,1780.4,0.51322565]
[1743770208261,3.0,1781.0,1780.7,5.61573]
[1743770208459,3.0,1781.0,1780.5,5.61612]
[1743770208625,5.61538,1780.9,1780.4,0.51322565]
[1743770208823,5.61571,1780.8,1780.4,0.51322565]
[1743770209037,5.61639,1780.5,1780.4,0.51322565]
[1743770209348,8.94,1780.6,1780.5,0.51322565]
[1743770209549,14.55608,1780.6,1780.5,0.51322565]
[1743770210071,19.573269,1780.6,1780.5,0.51322565]
[1743770210236,5.61709,1780.3,1779.9,0.51322565]
[1743770210437,11.23436,1780.3,1779.9,0.51322565]
[1743770210648,5.61746,1780.2,1779.9,0.51322565]
[1743770211159,7.11215,1780.3,1779.9,0.51322565]
[1743770211365,5.61772,1780.1,1779.9,0.51322565]
[1743770211665,5.61746,1780.2,1779.9,0.51322565]
[1743770211830,11.23499,1780.2,1779.9,0.51322565]
[1743770212376,5.61766,1780.1,1779.9,0.51322565]
[1743770212551,8.61797,1780.0,1779.9,0.51322565]
[1743770213454,3.0,1780.0,1779.9,0.51322565]
[1743770213669,8.61797,1780.0,1779.9,0.51322565]
[1743770215053,5.61829,1779.9,1779.8,0.55]
[1743770215251,7.041916,1779.9,1779.8,0.55]
[1743770215477,10.9901838,1779.9,1779.8,0.55]
[1743770216141,11.40131294,1779.9,1779.8,0.55]
[1743770216342,5.61986,1779.5,1779.4,0.51322565]
[1743770216662,10.703046,1779.5,1779.4,0.51322565]
[1743770217174,10.703046,1779.5,1777.8,1.4453]
[1743770217175,0.55,1779.2,1777.8,1.4453]
[1743770217342,8.62119,1779.0,1778.2,5.62366]
[1743770217542,3.0,1779.2,1778.4,1.5052]
[1743770217845,5.62085,1779.1,1778.4,1.5052]
[1743770218066,1.541,1779.0,1778.4,1.5052]
[1743770218245,5.62181,1778.8,1778.4,1.5052]
[1743770218749,4.541,1779.0,1778.5,5.62249]
[1743770218949,4.541,1779.0,1778.4,1.5052]
[1743770218950,5.62177,1778.8,1778.4,1.5052]
[1743770219176,5.62177,1778.8,1778.1,0.05]
[1743770219177,5.62197,1778.8,1778.2,5.62349]
[1743770219395,5.62173,1778.9,1778.3,5.62334]
[1743770219593,5.62196,1778.8,1778.2,7.13649]
[1743770219889,5.62191,1778.8,1778.3,5.62321]
[1743770220073,11.24398,1778.8,1778.2,12.76005]
[1743770220379,3.0,1779.2,1778.5,5.6227]
[1743770220541,5.62271,1778.5,1778.2,1.513]
[1743770220742,1.5569,1778.8,1778.1,0.05]
[1743770220960,5.62366,1778.2,1778.1,0.05]
[1743770221447,8.62338,1778.3,1778.1,0.05]
[1743770221681,5.62366,1778.2,1778.1,0.05]
[1743770221882,19.41520488,1778.2,1778.1,0.05]
[1743770222068,19.00416,1778.2,1778.1,0.05]
[1743770222245,19.55416,1778.2,1778.1,1e-05]
[1743770222455,19.00416,1778.2,1778.1,1e-05]
[1743770222656,21.55102675,1778.2,1778.1,1e-05]
[1743770222861,22.10102675,1778.2,1778.1,1e-05]
[1743770223496,5.62667,1777.3,1777.1,0.05]
[1743770223893,5.62591,1777.5,1777.1,0.05]
[1743770224119,5.62682,1777.2,1777.1,0.05]
[1743770224409,10.62042,1777.2,1777.1,1e-05]
[1743770224618,5.62869,1776.7,1776.2,1.5075]
[1743770224908,3.0,1777.1,1776.2,1.5075]
[1743770225399,3.0,1776.2,1774.7,5.63453]
[1743770225695,3.0,1776.2,1775.2,5.63299]
[1743770225696,8.63154,1775.8,1775.2,5.63299]
[1743770225859,3.0,1776.0,1774.7,5.63444]
[1743770226062,10.4116,1776.1,1775.7,5.63139]
[1743770226063,1.4436,1776.1,1775.7,5.63139]
[1743770226261,8.96,1776.2,1775.7,5.63143]
[1743770226600,14.3628678,1776.7,1776.2,5.62985]
[1743770226761,14.3628678,1776.7,1775.9,5.63084]
[1743770226762,1.4436,1776.7,1776.1,5.63011]
[1743770226961,5.62921,1776.5,1775.9,5.63069]
[1743770227164,3.0,1776.3,1775.5,5.63193]
[1743770227364,3.9482678,1776.4,1775.3,3.0]
[1743770227568,14.6449,1776.3,1775.6,5.63174]
[1743770227785,9.015,1776.3,1775.9,5.63077]
[1743770228101,3.0,1776.5,1775.7,5.63155]
[1743770228301,3.0,1776.6,1775.7,3.0]
[1743770228487,8.62878,1776.6,1775.8,1.51860485]
[1743770228710,8.993,1776.7,1775.9,0.55]
[1743770228997,5.7645678,1777.0,1775.9,0.55]
[1743770229175,5.62868,1776.7,1776.0,5.63042]
[1743770229376,5.7645678,1777.0,1776.1,0.05629726]
[1743770229579,8.981,1777.2,1776.4,1.4623]
[1743770229780,10.98821578,1777.2,1776.4,1.4623]
[1743770230002,3.9482678,1777.0,1776.1,5.63003]
[1743770230174,3.9482678,1777.0,1776.4,5.62904]
[1743770230175,8.57631757,1776.6,1776.4,5.62904]
[1743770230372,8.57631757,1776.6,1776.1,3.0]
[1743770230573,8.57631757,1776.6,1776.3,5.6295]
[1743770231017,8.57631757,1776.6,1776.4,5.62905]
[1743770231306,8.57631757,1776.6,1775.7,5.63131]
[1743770231491,5.63012,1776.2,1775.7,5.63157]
[1743770231678,5.62981,1776.3,1775.4,0.3]
[1743770232017,5.63028,1776.2,1775.6,5.63164]
[1743770232175,5.63051,1776.1,1775.5,11.26442]
[1743770232375,6.192671,1776.3,1775.7,5.63148]
[1743770232597,3.0,1776.5,1775.8,0.05631242]
[1743770232799,7.26673345,1776.7,1775.7,5.63152]
[1743770233015,5.73743345,1776.7,1775.8,0.55]
[1743770233213,5.73743345,1776.7,1776.4,5.62919]
[1743770233437,7.63406578,1777.2,1776.6,5.62869]
[1743770233632,5.62686,1777.2,1776.7,0.05628207]
[1743770233795,7.13553,1777.4,1776.6,0.5699]
[1743770234110,5.62676,1777.3,1776.7,5.62826]
[1743770234428,9.04075674,1777.2,1776.3,6.19957]
[1743770234627,3.0,1777.0,1776.6,5.6287]
[1743770234783,5.62778,1776.9,1776.4,5.62936]
[1743770234985,5.62813,1776.8,1776.3,6.1995]
[1743770235180,8.62776,1777.0,1776.4,5.62934]
[1743770235514,5.62673,1777.3,1776.3,0.5699]
[1743770235515,11.50385938,1777.4,1776.5,5.62896]
[1743770235685,5.62737,1777.1,1776.6,5.62861]
[1743770235888,3.0,1777.3,1776.3,6.19949]
[1743770236111,5.6275,1777.0,1776.3,0.5699]
[1743770236297,3.0,1777.0,1776.5,5.62891]
[1743770236517,5.62699,1777.2,1776.4,5.62936]
[1743770236685,3.0,1777.1,1776.6,5.62849]
[1743770236885,3.0,1777.2,1776.4,0.619926]
[1743770237084,5.62774,1777.0,1776.4,5.62911]
[1743770237299,3.0,1777.2,1776.8,5.62787]
[1743770237481,14.23478492,1777.3,1777.1,5.62707]
[1743770237687,14.23478492,1777.3,1777.0,0.5699]
[1743770238017,14.23478492,1777.3,1777.2,5.62682]
[1743770238315,14.23478492,1777.3,1777.0,0.5699]
[1743770238514,14.23478492,1777.3,1776.3,5.62959]
[1743770238515,14.23478492,1777.3,1776.5,0.5699]
[1743770238694,19.86159492,1777.3,1776.8,5.62797]
[1743770238882,14.23478492,1777.3,1776.9,5.62772]
[1743770239089,14.23478492,1777.3,1777.0,5.62727]
[1743770239282,19.86144492,1777.3,1776.6,5.6285]
[1743770239515,3.0,1777.4,1776.6,0.51555413]
[1743770239682,1.4467,1777.2,1776.6,0.51555413]
[1743770239882,5.62792,1776.9,1776.6,0.51555413]
[1743770240089,11.256,1776.9,1776.6,0.51555413]
[1743770240415,5.62747,1777.0,1776.5,5.62883]
[1743770240616,4.4467,1777.2,1776.8,5.62797]
[1743770240914,1.6036,1777.5,1777.0,5.62733]
[1743770241113,3.0,1777.3,1776.9,5.62749]
[1743770241313,3.0,1777.3,1776.9,5.62759]
[1743770241518,1.6036,1777.5,1777.1,5.62698]
[1743770241722,7.22948,1777.5,1777.0,5.62746]
[1743770241882,5.72051436,1777.6,1777.3,5.62648]
[1743770242081,5.72051436,1777.6,1776.9,6.37354]
[1743770242418,5.62656,1777.3,1776.9,0.7458]
[1743770242617,5.62656,1777.3,1776.4,0.51807949]
[1743770242618,5.62856,1776.7,1776.4,0.51807949]